bitfinex-derivatives/quotes_BTCF0:USTF0_20250805
["timestamp","ask_amount","ask_price","bid_price","bid_amount"]
[1754358789157,1.31396702,114830.0,114820.0,1.47695498]
[1754358789856,1.31396702,114830.0,114820.0,1.11615498]
[1754358790663,1.31396702,114830.0,114820.0,1.7475385]
[1754358790965,1.31396702,114830.0,114820.0,1.47695498]
[1754358792461,0.9738235,114830.0,114820.0,1.7475385]
[1754358792661,0.9492135,114830.0,114820.0,1.7475385]
[1754358793464,0.9492135,114830.0,114820.0,2.0123385]
[1754358794557,0.9492135,114830.0,114820.0,1.7475385]
[1754358794759,0.9492135,114830.0,114820.0,1.20637146]
[1754358795059,1.29253702,114830.0,114820.0,1.7475385]
[1754358795567,1.0219535,114830.0,114820.0,1.7475385]
[1754358796866,1.0219535,114830.0,114820.0,1.20637146]
[1754358797068,1.0219535,114830.0,114820.0,1.7475385]
[1754358797968,1.29253702,114830.0,114820.0,1.47695498]
[1754358798168,1.29253702,114830.0,114820.0,0.87587498]
[1754358798368,1.29253702,114830.0,114820.0,1.47447498]
[1754358798569,1.29253702,114830.0,114820.0,1.7450585]
[1754358798771,1.0219535,114830.0,114820.0,1.7450585]
[1754358798962,1.0219535,114830.0,114820.0,1.20389146]
[1754358799164,1.0219535,114830.0,114820.0,1.47447498]
[1754358799363,1.0219535,114830.0,114820.0,1.73927498]
[1754358806976,1.0219535,114830.0,114820.0,1.46869146]
[1754358807170,1.0219535,114830.0,114820.0,1.73927498]
[1754358807572,1.0219535,114830.0,114820.0,2.11943782]
[1754358807975,1.0219535,114830.0,114820.0,2.0098585]
[1754358808873,1.0219535,114830.0,114820.0,2.11943782]
[1754358809179,1.0219535,114830.0,114820.0,2.0098585]
[1754358809579,1.0219535,114830.0,114820.0,2.11943782]
[1754358809983,1.0219535,114830.0,114820.0,2.0098585]
[1754358810181,0.5442535,114830.0,114820.0,2.0098585]
[1754358811084,0.4966435,114830.0,114820.0,2.0098585]
[1754358811779,0.5296435,114830.0,114820.0,2.0098585]
[1754358811980,0.5431635,114830.0,114820.0,2.0098585]
[1754358812680,0.5431635,114830.0,114820.0,1.46869146]
[1754358812882,0.5431635,114830.0,114820.0,2.0098585]
[1754358815881,0.5431635,114830.0,114820.0,2.11943782]
[1754358816084,0.5431635,114830.0,114820.0,1.57827078]
[1754358816286,0.81374702,114830.0,114820.0,2.11943782]
[1754358816880,0.81374702,114830.0,114820.0,2.0098585]
[1754358817077,0.81374702,114830.0,114820.0,1.46861146]
[1754358817886,0.81374702,114830.0,114820.0,1.46861206]
[1754358818187,0.81274702,114830.0,114820.0,1.46861206]
[1754358818388,0.81274702,114830.0,114820.0,1.37839558]
[1754358818389,0.81374702,114830.0,114820.0,1.37839558]
[1754358818587,0.81474702,114830.0,114820.0,1.37839558]
[1754358818787,0.81474702,114830.0,114820.0,1.73919558]
[1754358819584,0.81474702,114830.0,114820.0,1.46861206]
[1754358819790,0.81474702,114830.0,114820.0,1.73919558]
[1754358820278,0.81474702,114830.0,114820.0,0.69590296]
[1754358820491,0.81474702,114830.0,114820.0,0.93362296]
[1754358820685,0.81474702,114830.0,114820.0,1.37839538]
[1754358820686,0.5441635,114830.0,114820.0,1.37839538]
[1754358820884,0.81474702,114830.0,114820.0,1.37839538]
[1754358821482,0.81474702,114830.0,114820.0,1.73919538]
[1754358821677,0.81474702,114830.0,114820.0,1.37839538]
[1754358821887,0.81474702,114830.0,114820.0,1.73919538]
[1754358823090,0.81474702,114830.0,114820.0,1.47439538]
[1754358823293,0.81474702,114830.0,114820.0,1.11359538]
[1754358823488,0.81474702,114830.0,114820.0,1.47439538]
[1754358824392,0.5441635,114830.0,114820.0,1.47439538]
[1754358824594,0.81474702,114830.0,114820.0,1.47439538]
[1754358824784,0.81474702,114830.0,114820.0,1.11359538]
[1754358825191,0.81474702,114830.0,114820.0,1.47439538]
[1754358825992,0.81474702,114830.0,114820.0,0.51507538]
[1754358826184,0.81474702,114830.0,114820.0,1.11355538]
[1754358826384,0.81474702,114830.0,114820.0,1.47435538]
[1754358826993,1.31474702,114830.0,114820.0,1.47435538]
[1754358827488,1.31474702,114830.0,114820.0,1.20377186]
[1754358827692,1.31474702,114830.0,114820.0,1.11355538]
[1754358828192,1.31474702,114830.0,114820.0,1.47435538]
[1754358828593,1.0441635,114830.0,114820.0,1.47435538]
[1754358828785,1.31474702,114830.0,114820.0,1.47435538]
[1754358829092,1.31474702,114830.0,114820.0,1.20377186]
[1754358829593,1.31474702,114830.0,114820.0,0.84297186]
[1754358831498,1.31474702,114830.0,114820.0,1.11355538]
[1754358833896,1.31474702,114830.0,114820.0,0.93936648]
[1754358834198,1.31474702,114830.0,114820.0,0.66878296]
[1754358835294,1.0441635,114830.0,114820.0,0.66878296]
[1754358835500,1.31474702,114830.0,114820.0,0.66878296]
[1754358838006,1.67554702,114830.0,114820.0,0.66870296]
[1754358838607,1.94613054,114830.0,114820.0,0.66870296]
[1754358839007,1.4049635,114830.0,114820.0,0.66870296]
[1754358839311,1.94613054,114830.0,114820.0,0.66870296]
[1754358840311,0.1742038,114810.0,114800.0,0.7998173]
[1754358840501,0.75212477,114810.0,114800.0,1.443239]
[1754358840814,0.75212477,114810.0,114800.0,1.84702184]
[1754358840815,0.2911138,114810.0,114800.0,1.84702184]
[1754358841106,0.56169732,114810.0,114800.0,1.73744252]
[1754358841315,0.2911138,114810.0,114800.0,1.73744252]
[1754358841506,0.56169732,114810.0,114800.0,1.84802184]
[1754358841707,0.56169732,114810.0,114800.0,1.84902184]
[1754358841905,0.56169732,114810.0,114800.0,1.468859]
[1754358842104,0.56169732,114810.0,114800.0,1.29464]
[1754358842409,0.5406138,114810.0,114800.0,1.73944242]
[1754358842612,0.81119732,114810.0,114800.0,1.73944242]
[1754358843711,0.81119732,114810.0,114800.0,1.02984]
[1754358843905,0.81119732,114810.0,114800.0,1.30931839]
[1754358844110,0.81119732,114810.0,114800.0,1.03873487]
[1754358844310,0.81119732,114810.0,114800.0,1.08445042]
[1754358844704,1.08178084,114810.0,114800.0,0.44103042]
[1754358844910,1.44258084,114810.0,114800.0,0.67577555]
[1754358845109,1.94258084,114810.0,114800.0,0.67577555]
[1754358845716,1.94258084,114810.0,114800.0,0.70607555]
[1754358846107,1.4014138,114810.0,114800.0,0.70607555]
[1754358846418,1.94258084,114810.0,114800.0,0.74343555]
[1754358846815,1.94258084,114810.0,114800.0,0.74243555]
[1754358847517,1.67199732,114810.0,114800.0,0.74243555]
[1754358847815,1.67299732,114810.0,114800.0,0.74243555]
[1754358848115,1.67499732,114810.0,114800.0,0.74243555]
[1754358848717,1.94558084,114810.0,114800.0,0.74243555]
[1754358849908,1.94558084,114810.0,114800.0,0.72867555]
[1754358850218,1.94558084,114810.0,114800.0,0.67377555]
[1754358853713,1.94558084,114810.0,114800.0,0.06933555]
[1754358853916,0.2909243,114790.0,114780.0,0.08987]
[1754358854220,0.83209134,114790.0,114780.0,0.68259]
[1754358854620,0.2909394,114780.0,114770.0,0.93907292]
[1754358854820,0.49390292,114780.0,114770.0,1.56979292]
[1754358855017,0.54790292,114780.0,114770.0,1.56979292]
[1754358855210,0.56152292,114780.0,114770.0,1.57858511]
[1754358855723,0.2909394,114780.0,114770.0,1.57858511]
[1754358856117,0.56152292,114780.0,114770.0,1.30800159]
[1754358856325,0.56152292,114780.0,114770.0,1.57858511]
[1754358856519,0.81102292,114780.0,114770.0,1.57858511]
[1754358856709,0.81102292,114780.0,114770.0,1.58058511]
[1754358856913,0.81102292,114780.0,114770.0,1.65017703]
[1754358857114,0.81102292,114780.0,114770.0,1.38159351]
[1754358857319,0.81102292,114780.0,114770.0,1.65217703]
[1754358857718,0.5404394,114780.0,114770.0,1.65217703]
[1754358858220,0.81102292,114780.0,114770.0,1.65217703]
[1754358859117,0.81102292,114780.0,114770.0,1.29137703]
[1754358859520,0.81102292,114780.0,114770.0,1.40095635]
[1754358859821,0.81102292,114780.0,114770.0,1.49117283]
[1754358860025,0.5404394,114780.0,114770.0,1.76175635]
[1754358860222,0.81102292,114780.0,114770.0,1.40095635]
[1754358860722,0.81102292,114780.0,114770.0,1.76175635]
[1754358861018,0.81102292,114780.0,114770.0,1.40095635]
[1754358861223,0.81102292,114780.0,114770.0,1.76175635]
[1754358862524,0.81102292,114780.0,114770.0,1.15535635]
[1754358862717,0.81102292,114780.0,114770.0,1.76211635]
[1754358862913,0.81102292,114780.0,114770.0,1.71827035]
[1754358863218,0.81102292,114780.0,114770.0,1.60869103]
[1754358864226,0.81102292,114780.0,114770.0,1.43443763]
[1754358864426,0.81102292,114780.0,114770.0,0.80305411]
[1754358864720,0.81102292,114780.0,114770.0,1.24790223]
[1754358864921,0.81102292,114780.0,114770.0,1.60870223]
[1754358865124,0.81102292,114780.0,114770.0,1.71828155]
[1754358865727,0.81102292,114780.0,114770.0,1.44769803]
[1754358865927,0.81102292,114780.0,114770.0,1.71828155]
[1754358866327,0.81102292,114780.0,114770.0,1.60870223]
[1754358866528,0.81102292,114780.0,114770.0,1.00222223]
[1754358866828,0.81102292,114780.0,114770.0,1.51933695]
[1754358867129,0.5404394,114780.0,114770.0,1.60834213]
[1754358867328,0.81102292,114780.0,114770.0,1.60834213]
[1754358867528,0.81102292,114780.0,114770.0,1.16349411]
[1754358867829,0.81102292,114780.0,114770.0,1.43407763]
[1754358868021,0.5404394,114780.0,114770.0,1.43407763]
[1754358868222,1.08160644,114780.0,114770.0,1.43407763]
[1754358868522,1.08160644,114780.0,114770.0,1.31988763]
[1754358868723,1.08160644,114780.0,114770.0,1.02774763]
[1754358868926,1.08160644,114780.0,114770.0,1.04895763]
[1754358869121,1.08160644,114780.0,114770.0,0.64142223]
[1754358869323,0.81102292,114780.0,114770.0,1.60778223]
[1754358869529,0.81102292,114780.0,114770.0,1.24698223]
[1754358870131,0.81102292,114780.0,114770.0,1.60778223]
[1754358870629,0.81102292,114780.0,114770.0,1.33719871]
[1754358870630,0.4472194,114780.0,114770.0,1.33719871]
[1754358870830,0.4472194,114780.0,114770.0,1.60778223]
[1754358870831,0.71780292,114780.0,114770.0,1.60778223]
[1754358871033,0.75048292,114780.0,114770.0,1.33719871]
[1754358871330,0.81102292,114780.0,114770.0,1.60778223]
[1754358873635,0.81102292,114780.0,114770.0,1.33719871]
[1754358873934,0.81102292,114780.0,114770.0,1.60778223]
[1754358874234,0.5404394,114780.0,114770.0,1.60778223]
[1754358874423,0.81102292,114780.0,114770.0,1.60778223]
[1754358875037,0.5404394,114780.0,114770.0,1.60778223]
[1754358875333,0.81102292,114780.0,114770.0,1.60778223]
[1754358875837,0.5404394,114780.0,114770.0,1.60778223]
[1754358876134,0.81102292,114780.0,114770.0,1.60778223]
[1754358877634,0.4472194,114780.0,114770.0,1.60778223]
[1754358878037,0.4472194,114780.0,114770.0,1.71736155]
[1754358878540,0.4237494,114780.0,114770.0,1.71736155]
[1754358879137,0.4481294,114780.0,114770.0,1.71736155]
[1754358879441,0.4481294,114780.0,114770.0,1.60778223]
[1754358880637,0.4237494,114780.0,114770.0,1.87836575]
[1754358880940,0.2495,114780.0,114770.0,1.87836575]
[1754358882249,0.2495,114780.0,114770.0,2.14316575]
[1754358884257,0.4237494,114780.0,114770.0,1.60199871]
[1754358884546,0.4481294,114780.0,114770.0,1.87258223]
[1754358884746,0.79946292,114780.0,114770.0,1.87258223]
[1754358884946,0.81356292,114780.0,114770.0,1.26702223]
[1754358885245,0.81356292,114780.0,114770.0,1.87158223]
[1754358885846,0.81356292,114780.0,114770.0,1.26702223]
[1754358886146,0.81356292,114780.0,114770.0,1.87158223]
[1754358886349,0.4741394,114780.0,114770.0,1.87158223]
[1754358886646,0.4481294,114780.0,114770.0,1.87168749]
[1754358887245,0.4237494,114780.0,114770.0,1.87168749]
[1754358888037,0.4481294,114780.0,114770.0,1.87168749]
[1754358888547,0.4481294,114780.0,114770.0,1.98126681]
[1754358888847,0.4237494,114780.0,114770.0,1.98126681]
[1754358889148,0.4237494,114780.0,114770.0,1.98118681]
[1754358889446,0.4237494,114780.0,114770.0,1.98102681]
[1754358890140,0.4481294,114780.0,114770.0,1.71033803]
[1754358890342,0.4481294,114780.0,114770.0,1.98102681]
[1754358890850,0.27388,114780.0,114770.0,1.98102681]
[1754358891052,0.27388,114780.0,114770.0,1.37670681]
[1754358891349,0.2495,114780.0,114770.0,1.98078681]
[1754358891650,0.4237493,114780.0,114770.0,1.98078681]
[1754358892148,0.4481293,114780.0,114770.0,1.98078681]
[1754358892539,0.4481293,114780.0,114770.0,1.98090681]
[1754358893443,0.2495,114780.0,114770.0,1.98090681]
[1754358894348,0.4237494,114780.0,114770.0,1.98090681]
[1754358894847,0.4237494,114780.0,114770.0,1.87132749]
[1754358895049,0.4237494,114780.0,114770.0,1.87140749]
[1754358895751,0.4237494,114780.0,114770.0,1.60071871]
[1754358895951,0.4237494,114780.0,114770.0,1.87140749]
[1754358896445,0.2495,114780.0,114770.0,1.87140749]
[1754358896846,0.2495,114780.0,114770.0,1.98111829]
[1754358897952,0.4237493,114780.0,114770.0,1.98111829]
[1754358898453,0.4481293,114780.0,114770.0,1.98111829]
[1754358900154,0.5429793,114780.0,114770.0,1.98111829]
[1754358900749,0.5429793,114780.0,114770.0,1.87140749]
[1754358903755,0.5429793,114780.0,114770.0,1.98111829]
[1754358904460,0.5429793,114780.0,114770.0,1.87140749]
[1754358904851,0.5429793,114780.0,114770.0,1.26712749]
[1754358905051,0.5429793,114780.0,114770.0,1.87072749]
[1754358906250,0.5288793,114780.0,114770.0,1.87072749]
[1754358906658,0.5288793,114780.0,114770.0,2.14136831]
[1754358907055,0.35463,114780.0,114770.0,2.14136831]
[1754358907257,0.27388,114780.0,114770.0,2.14136831]
[1754358907755,0.20672542,114780.0,114770.0,2.25114656]
[1754358908259,0.20672542,114780.0,114770.0,2.14136831]
[1754358908860,0.20672542,114780.0,114770.0,2.41203311]
[1754358909361,0.20672542,114780.0,114770.0,2.14136831]
[1754358909557,0.15142542,114780.0,114770.0,2.58628911]
[1754358909757,0.15142542,114780.0,114770.0,2.41203311]
[1754358910063,0.15142542,114780.0,114770.0,2.14136831]
[1754358910562,0.17633542,114780.0,114770.0,2.14136831]
[1754358910763,0.17633542,114780.0,114770.0,2.14124903]
[1754358911455,0.17633542,114780.0,114770.0,1.87064387]
[1754358913063,0.17633542,114780.0,114770.0,2.14124903]
[1754358913763,0.15142542,114780.0,114770.0,2.2975549]
[1754358914565,0.15142542,114780.0,114770.0,2.14124903]
[1754358915566,0.02040201,114780.0,114770.0,2.14124903]
[1754358916275,0.02040201,114780.0,114770.0,2.2975549]
[1754358916866,0.04531201,114780.0,114770.0,2.2975549]
[1754358917067,0.04531201,114780.0,114770.0,1.15274458]
[1754358917267,0.31763141,114780.0,114770.0,2.02618974]
[1754358917573,0.14338201,114780.0,114770.0,2.02618974]
[1754358917775,0.31763141,114780.0,114770.0,1.60508387]
[1754358917971,0.08520201,114780.0,114770.0,1.00224387]
[1754358918168,0.14338201,114780.0,114770.0,1.60508387]
[1754358918474,0.31763141,114780.0,114770.0,1.60508387]
[1754358918973,0.14338201,114780.0,114770.0,1.60508387]
[1754358921677,0.14338201,114780.0,114770.0,2.81000387]
[1754358923678,0.14338201,114780.0,114770.0,3.07480387]
[1754358925177,0.14338201,114780.0,114770.0,3.43560387]
[1754358927677,0.12983201,114780.0,114770.0,3.43560387]
[1754358929376,0.12983201,114780.0,114770.0,2.83276387]
[1754358929574,0.14338201,114780.0,114770.0,3.43476387]
[1754358929975,0.12983201,114780.0,114770.0,3.43476387]
[1754358930277,0.09501201,114780.0,114770.0,3.43476387]
[1754358930483,0.06192201,114780.0,114770.0,3.43476387]
[1754358930681,0.04531201,114780.0,114770.0,3.43476387]
[1754358932287,0.04531201,114780.0,114770.0,3.70536903]
[1754358932784,0.04531201,114780.0,114770.0,3.10336903]
[1754358932986,0.04531201,114780.0,114770.0,3.70500903]
[1754358933186,0.04531201,114780.0,114770.0,3.43440387]
[1754358935984,0.04531201,114780.0,114770.0,3.54409886]
[1754358938283,0.04531201,114780.0,114770.0,3.43440387]
[1754358938784,0.04531201,114780.0,114770.0,3.81484306]
[1754358939687,0.04531201,114780.0,114770.0,3.81484351]
[1754358941287,0.04531201,114780.0,114770.0,3.70505231]
[1754358945489,0.04531201,114780.0,114770.0,3.86135818]
[1754358946192,0.04531201,114780.0,114770.0,3.70505231]
[1754358948695,0.04531201,114780.0,114770.0,3.16379871]
[1754358948995,0.25688141,114780.0,114770.0,2.53783871]
[1754358949297,0.58288821,114780.0,114770.0,3.35803551]
[1754358949495,0.31226141,114780.0,114770.0,3.08740871]
[1754358949887,0.31226141,114780.0,114770.0,3.35803551]
[1754358950297,0.31226141,114780.0,114770.0,3.08740871]
[1754358950505,0.31226141,114780.0,114770.0,3.35803551]
[1754358951701,0.31226141,114780.0,114770.0,3.08740871]
[1754358951999,0.31226141,114780.0,114770.0,3.35803551]
[1754358955291,0.31226141,114780.0,114770.0,3.46778647]
[1754358959307,0.31226141,114780.0,114770.0,3.20298647]
[1754358959607,0.04531201,114780.0,114770.0,3.47361327]
[1754358960308,0.04531201,114780.0,114770.0,2.87329327]
[1754358960610,0.02040201,114780.0,114770.0,3.63424911]
[1754358960805,0.02040201,114780.0,114770.0,3.36362231]
[1754358961403,0.04470201,114780.0,114770.0,3.36362231]
[1754358964210,0.04470201,114780.0,114770.0,3.47337327]
[1754358964608,0.04470201,114780.0,114770.0,3.20273358]
[1754358965112,0.04470201,114780.0,114770.0,3.09298262]
[1754358966113,0.04470201,114780.0,114770.0,3.20273358]
[1754358966313,0.04470201,114780.0,114770.0,2.93211967]
[1754358966511,0.04470201,114780.0,114770.0,2.82236871]
[1754358966814,0.04470201,114780.0,114770.0,3.09298262]
[1754358971019,0.02040201,114780.0,114770.0,3.36359653]
[1754358971408,0.00540201,114780.0,114770.0,3.36359653]
[1754358973717,0.00540201,114780.0,114770.0,3.38112347]
[1754358976517,0.02946201,114780.0,114770.0,3.38112347]
[1754358976713,0.12379201,114780.0,114770.0,3.11050956]
[1754358977223,0.12379201,114780.0,114770.0,2.51042956]
[1754358977425,0.12379201,114780.0,114770.0,3.11042956]
[1754358978425,0.10952201,114780.0,114770.0,3.11042956]
[1754358978630,0.02946201,114780.0,114770.0,3.11042956]
[1754358979231,0.02946201,114780.0,114770.0,3.26673543]
[1754358980825,0.02946201,114780.0,114770.0,3.11042956]
[1754358981021,0.02946201,114780.0,114770.0,3.31344311]
[1754358981233,0.02946201,114780.0,114770.0,3.1995922]
[1754358981635,0.02946201,114780.0,114770.0,3.47020611]
[1754358982435,0.07717201,114780.0,114770.0,2.66719256]
[1754358982631,0.02946201,114780.0,114770.0,3.26715256]
[1754358982832,0.02946201,114780.0,114770.0,3.11038956]
[1754358984735,0.10110201,114780.0,114770.0,2.51042956]
[1754358984940,0.12379201,114780.0,114770.0,3.11038956]
[1754358985526,0.29804151,114780.0,114770.0,3.22015201]
[1754358985731,0.29804151,114780.0,114770.0,2.62019201]
[1754358985932,0.12379201,114780.0,114770.0,3.22015201]
[1754358986333,0.12379201,114780.0,114770.0,3.11038956]
[1754358986941,0.12379201,114780.0,114770.0,3.26715256]
[1754358987242,0.07717201,114780.0,114770.0,3.26715256]
[1754358987633,0.07717201,114780.0,114770.0,3.11038956]
[1754358988239,0.07717201,114780.0,114770.0,2.66725032]
[1754358988438,0.07717201,114780.0,114770.0,3.26717032]
[1754358990139,0.05448201,114780.0,114770.0,3.26717032]
[1754358990337,0.02946201,114780.0,114770.0,3.26717032]
[1754358990739,0.02946201,114780.0,114770.0,3.24964338]
[1754358991444,0.12379201,114780.0,114770.0,3.24964338]
[1754358992639,0.02946201,114780.0,114770.0,3.24964338]
[1754358992943,0.02946201,114780.0,114770.0,2.97902947]
[1754358993242,0.02946201,114780.0,114770.0,3.24964338]
[1754358994849,0.12555201,114780.0,114770.0,3.24964338]
[1754358996550,0.11175201,114780.0,114770.0,3.24964338]
[1754358996847,0.07758201,114780.0,114770.0,3.24964338]
[1754358997048,0.07758201,114780.0,114770.0,3.09282262]
[1754358998745,0.01173206,114780.0,114770.0,3.09282262]
[1754358998950,0.01173206,114780.0,114770.0,3.12680262]
[1754359001142,0.01173206,114780.0,114770.0,3.28364473]
[1754359001956,0.1196,114790.0,114780.0,0.2171899]
[1754359002144,0.1196,114790.0,114780.0,1.49205381]
[1754359002544,0.2938347,114790.0,114780.0,1.49205381]
[1754359002745,0.2938347,114790.0,114780.0,1.76273838]
[1754359004151,0.1196,114790.0,114780.0,1.87253237]
[1754359005252,0.2938346,114790.0,114780.0,1.87253237]
[1754359005454,0.2938346,114790.0,114780.0,1.33123389]
[1754359005647,0.2938346,114790.0,114780.0,1.87253237]
[1754359007852,0.2938346,114790.0,114780.0,1.33123389]
[1754359008053,0.56448384,114790.0,114780.0,1.87253237]
[1754359008853,0.56448384,114790.0,114780.0,1.00204313]
[1754359009156,0.56448384,114790.0,114780.0,1.60180313]
[1754359009356,0.56448384,114790.0,114780.0,1.49200914]
[1754359010253,0.56448384,114790.0,114780.0,1.13120914]
[1754359010453,0.56448384,114790.0,114780.0,1.49200914]
[1754359010854,0.56448384,114790.0,114780.0,1.64885125]
[1754359011859,0.56448384,114790.0,114780.0,1.63165125]
[1754359012462,0.56448384,114790.0,114780.0,1.47480914]
[1754359012960,0.56448384,114790.0,114780.0,1.2041599]
[1754359013160,0.56448384,114790.0,114780.0,1.47480914]
[1754359013362,0.2938346,114790.0,114780.0,1.47480914]
[1754359013559,0.56448384,114790.0,114780.0,1.11400914]
[1754359013767,0.56448384,114790.0,114780.0,1.47480914]
[1754359014563,0.56448384,114790.0,114780.0,1.11400914]
[1754359014763,0.56448384,114790.0,114780.0,1.47480914]
[1754359015060,0.56448384,114790.0,114780.0,1.63165125]
[1754359015559,0.56448384,114790.0,114780.0,1.03189125]
[1754359015751,0.56448384,114790.0,114780.0,0.8604799]
[1754359016065,0.2938346,114790.0,114780.0,1.13112914]
[1754359016262,0.56448384,114790.0,114780.0,0.8604799]
[1754359016460,0.2938346,114790.0,114780.0,1.28797125]
[1754359016664,0.56448384,114790.0,114780.0,1.28797125]
[1754359016864,0.2938346,114790.0,114780.0,1.28797125]
[1754359017057,0.2938346,114790.0,114780.0,1.91942049]
[1754359017362,0.56448384,114790.0,114780.0,1.28797125]
[1754359017561,0.56448384,114790.0,114780.0,1.64877125]
[1754359017959,0.2938346,114790.0,114780.0,1.64877125]
[1754359018159,0.56448384,114790.0,114780.0,1.64877125]
[1754359021469,0.56448384,114790.0,114780.0,0.77276211]
[1754359021470,1.19593308,114790.0,114780.0,0.77276211]
[1754359021666,0.6546346,114790.0,114780.0,0.77276211]
[1754359021865,0.56448384,114790.0,114780.0,1.01795171]
[1754359022063,0.56448384,114790.0,114780.0,0.8611096]
[1754359022472,0.56448384,114790.0,114780.0,0.68686]
[1754359022672,0.56448384,114790.0,114780.0,0.8611096]
[1754359023772,0.2938346,114790.0,114780.0,0.8611096]
[1754359023972,0.56448384,114790.0,114780.0,0.8611096]
[1754359024175,0.66448384,114790.0,114780.0,0.8611096]
[1754359024773,0.66455945,114790.0,114780.0,0.8611096]
[1754359025371,1.02535945,114790.0,114780.0,0.8611096]
[1754359025571,0.66455945,114790.0,114780.0,0.8611096]
[1754359029571,0.66455945,114790.0,114780.0,0.97089449]
[1754359030469,0.66455945,114790.0,114780.0,1.33169449]
[1754359030774,0.66455945,114790.0,114780.0,0.97089449]
[1754359031178,0.66455945,114790.0,114780.0,0.68686]
[1754359033974,1.02535945,114790.0,114780.0,0.68686]
[1754359034989,1.02535945,114790.0,114780.0,0.79656244]
[1754359037296,0.66455945,114790.0,114780.0,0.79656244]
[1754359037591,1.02535945,114790.0,114780.0,0.79656244]
[1754359038990,1.02535945,114790.0,114780.0,0.73466244]
[1754359039381,1.02535945,114790.0,114780.0,0.77920244]
[1754359039783,1.02535945,114790.0,114780.0,0.6867]
[1754359039992,0.66455945,114790.0,114780.0,0.6867]
[1754359040491,1.16455945,114790.0,114780.0,0.79640244]
[1754359040680,1.52535945,114790.0,114780.0,0.79640244]
[1754359040883,1.52535945,114790.0,114780.0,0.6867]
[1754359041886,1.52535945,114790.0,114780.0,0.8609495]
[1754359043090,1.52535945,114790.0,114780.0,0.97065194]
[1754359043991,1.52535945,114790.0,114780.0,0.79640244]
[1754359044290,1.52535945,114790.0,114780.0,0.6867]
[1754359044589,1.52535945,114790.0,114780.0,0.79640244]
[1754359046696,1.5253761,114790.0,114780.0,0.97065184]
[1754359053903,1.5253761,114790.0,114780.0,0.79640244]
[1754359054099,1.7961176,114790.0,114780.0,0.79640244]
[1754359054302,1.5253761,114790.0,114780.0,0.79640244]
[1754359054901,1.7961176,114790.0,114780.0,0.79640244]
[1754359055898,1.7961176,114790.0,114780.0,0.75504244]
[1754359056407,1.2546346,114790.0,114780.0,0.75504244]
[1754359056597,1.7961176,114790.0,114780.0,0.75504244]
[1754359057401,1.5253761,114790.0,114780.0,0.75504244]
[1754359057603,1.7961176,114790.0,114780.0,0.75504244]
[1754359058303,1.7961176,114790.0,114780.0,0.77782244]
[1754359059202,1.7961176,114790.0,114780.0,0.75504244]
[1754359062705,1.2546346,114790.0,114780.0,0.70902244]
[1754359062903,1.7961176,114790.0,114780.0,0.70902244]
[1754359063099,1.7961176,114790.0,114780.0,0.72460244]
[1754359063308,1.2546346,114790.0,114780.0,0.72460244]
[1754359063797,1.7961176,114790.0,114780.0,0.72460244]
[1754359064907,1.7961176,114790.0,114780.0,0.73535244]
[1754359066405,1.7961176,114790.0,114780.0,0.74498244]
[1754359066605,1.7961176,114790.0,114780.0,0.63528]
[1754359071204,1.81551927,114790.0,114780.0,0.63528]
[1754359072809,1.81551927,114790.0,114780.0,0.74498244]
[1754359073506,1.81551927,114790.0,114780.0,0.72460244]
[1754359074713,1.81551927,114790.0,114780.0,0.12528244]
[1754359074913,1.81551927,114790.0,114780.0,0.72452244]
[1754359075117,1.81551927,114790.0,114780.0,0.61482]
[1754359077513,1.81551927,114790.0,114780.0,0.61478]
[1754359077714,1.27403627,114790.0,114780.0,0.61478]
[1754359077914,1.81551927,114790.0,114780.0,0.61478]
[1754359079515,1.81551927,114790.0,114780.0,0.01558]
[1754359079714,1.81551927,114790.0,114780.0,0.61478]
[1754359081512,1.81551927,114790.0,114780.0,0.01558]
[1754359081918,1.81551927,114790.0,114780.0,0.61474]
[1754359083217,1.81551927,114790.0,114780.0,0.62549]
[1754359083418,1.81551927,114790.0,114780.0,0.63512]
[1754359084415,1.27403627,114790.0,114780.0,0.2508211]
[1754359084619,1.54360777,114790.0,114780.0,1.1297426]
[1754359085209,1.54360777,114790.0,114780.0,0.8590011]
[1754359085412,1.54360777,114790.0,114780.0,1.1297426]
[1754359087520,1.54360777,114790.0,114780.0,0.8590011]
[1754359087920,1.54360777,114790.0,114780.0,1.1297426]
[1754359088320,1.54360777,114790.0,114780.0,0.8590011]
[1754359088523,1.54360777,114790.0,114780.0,0.68475]
[1754359089321,1.54360777,114790.0,114780.0,0.859001]
[1754359089519,1.54360777,114790.0,114780.0,0.68475]
[1754359089822,1.54360777,114790.0,114780.0,0.859001]
[1754359090324,1.54360777,114790.0,114780.0,0.68475]
[1754359091321,1.81434927,114790.0,114780.0,0.68475]
[1754359091524,1.54360777,114790.0,114780.0,0.68475]
[1754359091722,1.54360777,114790.0,114780.0,0.64096]
[1754359092023,1.54360777,114790.0,114780.0,0.65171]
[1754359092225,1.54360777,114790.0,114780.0,0.68475]
[1754359092819,1.27286627,114790.0,114780.0,0.68475]
[1754359093023,1.54360777,114790.0,114780.0,0.68475]
[1754359095529,1.54360777,114790.0,114780.0,0.79445244]
[1754359097524,1.81434927,114790.0,114780.0,0.79445244]
[1754359098130,1.27286627,114790.0,114780.0,0.79445244]
[1754359098328,1.81434927,114790.0,114780.0,0.79445244]
[1754359101823,1.81434927,114790.0,114780.0,0.68475]
[1754359105930,0.2220807,114780.0,114770.0,0.50423655]
[1754359106135,1.1946737,114780.0,114770.0,1.13735655]
[1754359106734,1.1946737,114780.0,114770.0,1.13731655]
[1754359106929,1.1946737,114780.0,114770.0,1.04678245]
[1754359107632,1.1946737,114780.0,114770.0,1.04778245]
[1754359107937,0.8338737,114780.0,114770.0,1.04778245]
[1754359108140,0.2923907,114780.0,114770.0,1.04878245]
[1754359108338,0.2923907,114780.0,114770.0,0.44986245]
[1754359108534,0.8338737,114780.0,114770.0,1.04878245]
[1754359108739,0.8338737,114780.0,114770.0,0.93908001]
[1754359110044,0.8338737,114780.0,114770.0,0.76481411]
[1754359110240,1.1946737,114780.0,114770.0,0.76481411]
[1754359111343,0.8338737,114780.0,114770.0,0.93907961]
[1754359111837,0.8338737,114780.0,114770.0,0.16589411]
[1754359112044,1.1946737,114780.0,114770.0,0.09584411]
[1754359112232,1.1946737,114780.0,114770.0,0.70547411]
[1754359112434,1.1946737,114780.0,114770.0,0.74724411]
[1754359113037,1.1946737,114780.0,114770.0,0.85694655]
[1754359115548,0.6531907,114780.0,114770.0,0.85694655]
[1754359115749,1.1946737,114780.0,114770.0,0.85694655]
[1754359118145,1.1946737,114780.0,114770.0,0.87414655]
[1754359124858,0.6531907,114780.0,114770.0,1.04841185]
[1754359125157,1.1946737,114780.0,114770.0,0.93870941]
[1754359125854,1.1946737,114780.0,114770.0,1.04841185]
[1754359126259,1.1946737,114780.0,114770.0,1.31915335]
[1754359126557,1.1946737,114780.0,114770.0,1.31815335]
[1754359127059,1.1946737,114780.0,114770.0,1.04741185]
[1754359127555,1.1946737,114780.0,114770.0,0.44853185]
[1754359127753,1.1946737,114780.0,114770.0,1.04733185]
[1754359128259,1.4441737,114780.0,114770.0,1.04733185]
[1754359129453,1.4441737,114780.0,114770.0,0.87306655]